{"text_format":"3","workbook":"xlsx","n_sheets":2,"sheets":["Mensual","CAT"],"not_rendered":{"images":1},"read":"whole","date_system":"1900"}

{"sheet":"Mensual","index":0,"n_rows":55,"n_cols":130,"rows_kept":55,"merged":[[0,29,0,32],[0,33,0,48],[1,29,1,34],[1,35,1,48],[2,29,2,32],[2,33,2,48],[4,5,4,8],[4,9,4,12],[4,13,4,16],[4,17,4,20],[4,21,4,24],[4,25,4,28],[4,29,4,32],[4,33,4,36],[4,37,4,40],[4,41,4,44],[4,45,4,48],[4,49,4,52],[4,53,4,56],[4,57,4,60],[4,61,4,64],[4,65,4,68],[4,69,4,72],[4,73,4,76],[4,77,4,80],[4,81,4,84],[4,85,4,88],[4,89,4,92],[4,93,4,96],[4,97,4,100],[4,101,4,104],[4,105,4,108],[4,109,4,112],[4,113,4,116],[4,117,4,120],[4,121,4,124],[4,125,4,128],[5,3,5,4],[17,3,17,4],[27,3,27,4],[36,3,36,4],[44,3,44,4],[51,3,51,4]]}
[{"$nulls":29},"Unidad hospitalaria:",{"$nulls":3},"HOSPITAL GENERAL DEL VALLE DEL MEZQUITAL IXMIQUILPAN"]
[{"$nulls":29},"Responsable de TrabajoSocial:",{"$nulls":5},"LTS. INÉS SAN AGUSTIN PÉREZ"]
[{"$nulls":29},"Reporte del mes:",{"$nulls":3},"Noviembre"]
[]
[{"$nulls":4},"Dia del mes:","dia 1",{"$nulls":3},"dia 2",{"$nulls":3},"dia 3",{"$nulls":3},"dia 4",{"$nulls":3},"dia 5",{"$nulls":3},"dia 6",{"$nulls":3},"dia 7",{"$nulls":3},"dia 8",{"$nulls":3},"dia 9",{"$nulls":3},"dia 10",{"$nulls":3},"dia 11",{"$nulls":3},"dia 12",{"$nulls":3},"dia 13",{"$nulls":3},"dia 14",{"$nulls":3},"dia 15",{"$nulls":3},"dia 16",{"$nulls":3},"dia 17",{"$nulls":3},"dia 18",{"$nulls":3},"dia 19",{"$nulls":3},"dia 20",{"$nulls":3},"dia 21",{"$nulls":3},"dia 22",{"$nulls":3},"dia 23",{"$nulls":3},"dia 24",{"$nulls":3},"dia 25",{"$nulls":3},"dia 26",{"$nulls":3},"dia 27",{"$nulls":3},"dia 28",{"$nulls":3},"dia 29",{"$nulls":3},"dia 30",{"$nulls":3},"dia 31"]
[{"$nulls":3},"Investigación Social",null,"M","V","N","GE","M","V","N","GE","M","V","N","GE","M","V","N","GE","M","V","N","GE","M","V","N","GE","M","V","N","GE","M","V","N","GE","M","V","N","GE","M","V","N","GE","M","V","N","GE","M","V","N","GE","M","V","N","GE","M","V","N","GE","M","V","N","GE","M","V","N","GE","M","V","N","GE","M","V","N","GE","M","V","N","GE","M","V","N","GE","M","V","N","GE","M","V","N","GE","M","V","N","GE","M","V","N","GE","M","V","N","GE","M","V","N","GE","M","V","N","GE","M","V","N","GE","M","V","N","GE","M","V","N","GE","M","V","N","GE","TOTAL"]
[{"$f":"$AH$1","v":"HOSPITAL GENERAL DEL VALLE DEL MEZQUITAL IXMIQUILPAN"},{"$f":"$AJ$2","v":"LTS. INÉS SAN AGUSTIN PÉREZ"},{"$f":"$AH$3","v":"Noviembre"},1,"Total de Casos vulnerables",{"$nulls":124},{"$f":"SUM(F7:DY7)","v":0}]
[{"$f":"$AH$1","v":"HOSPITAL GENERAL DEL VALLE DEL MEZQUITAL IXMIQUILPAN"},{"$f":"$AJ$2","v":"LTS. INÉS SAN AGUSTIN PÉREZ"},{"$f":"$AH$3","v":"Noviembre"},2,"Casos con Cédula de Estudio Social y valoración socioeconomica",{"$nulls":124},0]
["HOSPITAL GENERAL DEL VALLE DEL MEZQUITAL IXMIQUILPAN","LTS. INÉS SAN AGUSTIN PÉREZ","Noviembre",3,"Lista de pertenencias",{"$nulls":124},0]
["HOSPITAL GENERAL DEL VALLE DEL MEZQUITAL IXMIQUILPAN","LTS. INÉS SAN AGUSTIN PÉREZ","Noviembre",4,"Total  de entrevistas a familiares",{"$nulls":124},0]
["HOSPITAL GENERAL DEL VALLE DEL MEZQUITAL IXMIQUILPAN","LTS. INÉS SAN AGUSTIN PÉREZ","Noviembre",5,"Dinamica familiar \"Funcional\"",{"$nulls":124},0]
["HOSPITAL GENERAL DEL VALLE DEL MEZQUITAL IXMIQUILPAN","LTS. INÉS SAN AGUSTIN PÉREZ","Noviembre",6,"Dinamica familiar \"Alerta\"",{"$nulls":124},0]
["HOSPITAL GENERAL DEL VALLE DEL MEZQUITAL IXMIQUILPAN","LTS. INÉS SAN AGUSTIN PÉREZ","Noviembre",7,"Dinamica familiar \"Disfuncional\"",{"$nulls":124},0]
["HOSPITAL GENERAL DEL VALLE DEL MEZQUITAL IXMIQUILPAN","LTS. INÉS SAN AGUSTIN PÉREZ","Noviembre",8,"Casos con Detección de violencia",{"$nulls":124},0]
["HOSPITAL GENERAL DEL VALLE DEL MEZQUITAL IXMIQUILPAN","LTS. INÉS SAN AGUSTIN PÉREZ","Noviembre",9,"Pacientes sin red de apoyo",{"$nulls":124},0]
["HOSPITAL GENERAL DEL VALLE DEL MEZQUITAL IXMIQUILPAN","LTS. INÉS SAN AGUSTIN PÉREZ","Noviembre",10,"Visitas domiciliarias.",{"$nulls":124},0]
["HOSPITAL GENERAL DEL VALLE DEL MEZQUITAL IXMIQUILPAN","LTS. INÉS SAN AGUSTIN PÉREZ","Noviembre",null,"Total:",{"$f":"SUM(F7:F16)","v":0},0,0,0,0,0,0,0,0,0,0,0,0,0,0,0,0,0,0,0,0,0,0,0,0,0,0,0,0,0,0,0,{"$f":"SUM(AL7:AL16)","v":0},0,0,0,0,0,0,0,0,0,0,0,0,0,0,0,0,0,0,0,0,0,0,0,0,0,0,0,{"$f":"SUM(BN7:BN16)","v":0},0,0,0,0,0,0,0,0,0,0,0,0,0,0,0,0,0,0,0,0,0,0,0,0,0,0,0,0,0,0,0,{"$f":"SUM(CT7:CT16)","v":0},0,0,0,0,0,0,0,0,0,0,0,0,0,0,0,0,0,0,0,0,0,0,0,0,0,0,0,0,0,0,0,0]
["HOSPITAL GENERAL DEL VALLE DEL MEZQUITAL IXMIQUILPAN","LTS. INÉS SAN AGUSTIN PÉREZ","Noviembre","Seguimiento de Casos",null,"M","V","N","GE","M","V","N","GE","M","V","N","GE","M","V","N","GE","M","V","N","GE","M","V","N","GE","M","V","N","GE","M","V","N","GE","M","V","N","GE","M","V","N","GE","M","V","N","GE","M","V","N","GE","M","V","N","GE","M","V","N","GE","M","V","N","GE","M","V","N","GE","M","V","N","GE","M","V","N","GE","M","V","N","GE","M","V","N","GE","M","V","N","GE","M","V","N","GE","M","V","N","GE","M","V","N","GE","M","V","N","GE","M","V","N","GE","M","V","N","GE","M","V","N","GE","M","V","N","GE","M","V","N","GE","M","V","N","GE","TOTAL"]
["HOSPITAL GENERAL DEL VALLE DEL MEZQUITAL IXMIQUILPAN","LTS. INÉS SAN AGUSTIN PÉREZ","Noviembre",1,"Entrega de informes sociales",{"$nulls":124},{"$f":"SUM(F19:DY19)","v":0}]
["HOSPITAL GENERAL DEL VALLE DEL MEZQUITAL IXMIQUILPAN","LTS. INÉS SAN AGUSTIN PÉREZ","Noviembre",2,"Notas de Trabajo Social",{"$nulls":124},0]
["HOSPITAL GENERAL DEL VALLE DEL MEZQUITAL IXMIQUILPAN","LTS. INÉS SAN AGUSTIN PÉREZ","Noviembre",3,"Casos que aplicaron Pertinencia cultural",{"$nulls":124},0]
["HOSPITAL GENERAL DEL VALLE DEL MEZQUITAL IXMIQUILPAN","LTS. INÉS SAN AGUSTIN PÉREZ","Noviembre",4,"Localización de familiares y/o pacientes.",{"$nulls":124},0]
["HOSPITAL GENERAL DEL VALLE DEL MEZQUITAL IXMIQUILPAN","LTS. INÉS SAN AGUSTIN PÉREZ","Noviembre",5,"Atención a casos médico-legales.",{"$nulls":124},0]
["HOSPITAL GENERAL DEL VALLE DEL MEZQUITAL IXMIQUILPAN","LTS. INÉS SAN AGUSTIN PÉREZ","Noviembre",6,"Casos orientados (trámites administrativos etc)",{"$nulls":124},0]
["HOSPITAL GENERAL DEL VALLE DEL MEZQUITAL IXMIQUILPAN","LTS. INÉS SAN AGUSTIN PÉREZ","Noviembre",7,"Ruta NAME",{"$nulls":124},0]
["HOSPITAL GENERAL DEL VALLE DEL MEZQUITAL IXMIQUILPAN","LTS. INÉS SAN AGUSTIN PÉREZ","Noviembre",8,"Código violeta",{"$nulls":124},0]
["HOSPITAL GENERAL DEL VALLE DEL MEZQUITAL IXMIQUILPAN","LTS. INÉS SAN AGUSTIN PÉREZ","Noviembre",null,"Total",{"$f":"SUM(F19:F26)","v":0},{"$f":"SUM(G19:G26)","v":0},{"$f":"SUM(H19:H26)","v":0},{"$f":"SUM(I19:I26)","v":0},{"$f":"SUM(J19:J26)","v":0},0,0,0,0,0,0,0,0,0,0,0,0,0,0,0,0,0,0,0,0,0,0,0,0,0,0,0,0,0,0,0,0,0,0,0,0,0,0,0,0,0,0,0,0,0,0,0,0,0,0,0,0,0,0,0,0,0,0,0,{"$f":"SUM(BR19:BR26)","v":0},0,0,0,0,0,0,0,0,0,0,0,0,0,0,0,0,0,0,0,0,0,0,0,0,0,0,0,0,0,0,0,0,0,0,0,0,0,0,0,0,0,0,0,0,0,0,0,0,0,0,0,0,0,0,0,0,0,0,0,0]
["HOSPITAL GENERAL DEL VALLE DEL MEZQUITAL IXMIQUILPAN","LTS. INÉS SAN AGUSTIN PÉREZ","Noviembre","Gestión Social",null,"M","V","N","GE","M","V","N","GE","M","V","N","GE","M","V","N","GE","M","V","N","GE","M","V","N","GE","M","V","N","GE","M","V","N","GE","M","V","N","GE","M","V","N","GE","M","V","N","GE","M","V","N","GE","M","V","N","GE","M","V","N","GE","M","V","N","GE","M","V","N","GE","M","V","N","GE","M","V","N","GE","M","V","N","GE","M","V","N","GE","M","V","N","GE","M","V","N","GE","M","V","N","GE","M","V","N","GE","M","V","N","GE","M","V","N","GE","M","V","N","GE","M","V","N","GE","M","V","N","GE","M","V","N","GE","M","V","N","GE","TOTAL"]
["HOSPITAL GENERAL DEL VALLE DEL MEZQUITAL IXMIQUILPAN","LTS. INÉS SAN AGUSTIN PÉREZ","Noviembre",1,"Gestión de albergues temporales o definitivos.",{"$nulls":124},{"$f":"SUM(F29:DY29)","v":0}]
["HOSPITAL GENERAL DEL VALLE DEL MEZQUITAL IXMIQUILPAN","LTS. INÉS SAN AGUSTIN PÉREZ","Noviembre",2,"Referencia de pacientes",{"$nulls":124},0]
["HOSPITAL GENERAL DEL VALLE DEL MEZQUITAL IXMIQUILPAN","LTS. INÉS SAN AGUSTIN PÉREZ","Noviembre",3,"Traslados de pacientes para estudios",{"$nulls":124},0]
["HOSPITAL GENERAL DEL VALLE DEL MEZQUITAL IXMIQUILPAN","LTS. INÉS SAN AGUSTIN PÉREZ","Noviembre",4,"Contrarreferencias",{"$nulls":124},0]
["HOSPITAL GENERAL DEL VALLE DEL MEZQUITAL IXMIQUILPAN","LTS. INÉS SAN AGUSTIN PÉREZ","Noviembre",5,"Coordinaciones con el equipo de salud, intrainstitucionales",{"$nulls":124},0]
["HOSPITAL GENERAL DEL VALLE DEL MEZQUITAL IXMIQUILPAN","LTS. INÉS SAN AGUSTIN PÉREZ","Noviembre",6,"Coordinaciones con el equipo de salud extrainstitucionales",{"$nulls":124},0]
["HOSPITAL GENERAL DEL VALLE DEL MEZQUITAL IXMIQUILPAN","LTS. INÉS SAN AGUSTIN PÉREZ","Noviembre",7,"Trámites de egreso de pacientes.",{"$nulls":124},0]
["HOSPITAL GENERAL DEL VALLE DEL MEZQUITAL IXMIQUILPAN","LTS. INÉS SAN AGUSTIN PÉREZ","Noviembre",null,"Total",{"$f":"SUM(F29:F35)","v":0},{"$f":"SUM(G29:G35)","v":0},0,0,0,0,0,0,0,0,0,0,0,0,0,0,0,0,0,0,0,0,0,0,0,0,0,0,0,0,0,0,0,0,0,0,0,0,0,0,0,0,0,0,0,0,0,0,0,0,0,0,0,0,0,0,0,0,0,0,0,{"$f":"SUM(BO29:BO35)","v":0},0,0,0,0,0,0,0,0,0,0,0,0,0,0,0,0,0,0,0,0,0,0,0,0,0,0,0,0,0,0,0,0,0,0,0,0,0,0,0,0,0,0,0,0,0,0,0,0,0,0,0,0,0,0,0,0,0,0,0,0,0,0,0]
["HOSPITAL GENERAL DEL VALLE DEL MEZQUITAL IXMIQUILPAN","LTS. INÉS SAN AGUSTIN PÉREZ","Noviembre","Educación para la Salud",null,"M","V","N","GE","M","V","N","GE","M","V","N","GE","M","V","N","GE","M","V","N","GE","M","V","N","GE","M","V","N","GE","M","V","N","GE","M","V","N","GE","M","V","N","GE","M","V","N","GE","M","V","N","GE","M","V","N","GE","M","V","N","GE","M","V","N","GE","M","V","N","GE","M","V","N","GE","M","V","N","GE","M","V","N","GE","M","V","N","GE","M","V","N","GE","M","V","N","GE","M","V","N","GE","M","V","N","GE","M","V","N","GE","M","V","N","GE","M","V","N","GE","M","V","N","GE","M","V","N","GE","M","V","N","GE","M","V","N","GE","TOTAL"]
["HOSPITAL GENERAL DEL VALLE DEL MEZQUITAL IXMIQUILPAN","LTS. INÉS SAN AGUSTIN PÉREZ","Noviembre",1,"Platicas informativas",{"$nulls":124},{"$f":"SUM(F38:DY38)","v":0}]
["HOSPITAL GENERAL DEL VALLE DEL MEZQUITAL IXMIQUILPAN","LTS. INÉS SAN AGUSTIN PÉREZ","Noviembre",2,"Formación y atención a grupos o clubes (ej. Club del Embarazo).",{"$nulls":124},0]
["HOSPITAL GENERAL DEL VALLE DEL MEZQUITAL IXMIQUILPAN","LTS. INÉS SAN AGUSTIN PÉREZ","Noviembre",3,"Elaboración y distribución de material didáctico/educativo.",{"$nulls":124},0]
["HOSPITAL GENERAL DEL VALLE DEL MEZQUITAL IXMIQUILPAN","LTS. INÉS SAN AGUSTIN PÉREZ","Noviembre",4,"Asistencia a eventos académicos y sesiones multidisciplinarias.",{"$nulls":124},0]
["HOSPITAL GENERAL DEL VALLE DEL MEZQUITAL IXMIQUILPAN","LTS. INÉS SAN AGUSTIN PÉREZ","Noviembre",5,"Asesoría a estudiantes o pasantes de Trabajo Social.",{"$nulls":124},0]
["HOSPITAL GENERAL DEL VALLE DEL MEZQUITAL IXMIQUILPAN","LTS. INÉS SAN AGUSTIN PÉREZ","Noviembre",6,"Participación como ponente u organizador de eventos académicos.",{"$nulls":124},0]
["HOSPITAL GENERAL DEL VALLE DEL MEZQUITAL IXMIQUILPAN","LTS. INÉS SAN AGUSTIN PÉREZ","Noviembre",null,"Total",{"$f":"SUM(F38:F43)","v":0},{"$f":"SUM(G38:G43)","v":0},0,0,0,0,0,0,0,0,0,0,0,0,0,0,0,0,0,0,0,0,0,0,0,0,0,0,0,0,0,0,0,0,0,0,0,0,0,0,0,0,0,0,0,0,0,0,0,0,0,0,0,0,0,0,0,0,0,0,0,{"$f":"SUM(BO38:BO43)","v":0},0,0,0,0,0,0,0,0,0,0,0,0,0,0,0,0,0,0,0,0,0,0,0,0,0,0,0,0,0,0,0,0,0,0,0,0,0,0,0,0,0,0,0,0,0,0,0,0,0,0,0,0,0,0,0,0,0,0,0,0,0,0,0]
["HOSPITAL GENERAL DEL VALLE DEL MEZQUITAL IXMIQUILPAN","LTS. INÉS SAN AGUSTIN PÉREZ","Noviembre","Actividades Administrativas",null,"M","V","N","GE","M","V","N","GE","M","V","N","GE","M","V","N","GE","M","V","N","GE","M","V","N","GE","M","V","N","GE","M","V","N","GE","M","V","N","GE","M","V","N","GE","M","V","N","GE","M","V","N","GE","M","V","N","GE","M","V","N","GE","M","V","N","GE","M","V","N","GE","M","V","N","GE","M","V","N","GE","M","V","N","GE","M","V","N","GE","M","V","N","GE","M","V","N","GE","M","V","N","GE","M","V","N","GE","M","V","N","GE","M","V","N","GE","M","V","N","GE","M","V","N","GE","M","V","N","GE","M","V","N","GE","M","V","N","GE","TOTAL"]
["HOSPITAL GENERAL DEL VALLE DEL MEZQUITAL IXMIQUILPAN","LTS. INÉS SAN AGUSTIN PÉREZ","Noviembre",1,"Total de pases de visita otorgados",{"$nulls":124},{"$f":"SUM(F46:DY46)","v":0}]
["HOSPITAL GENERAL DEL VALLE DEL MEZQUITAL IXMIQUILPAN","LTS. INÉS SAN AGUSTIN PÉREZ","Noviembre",2,"Elaboración de constancias y citatorios.",{"$nulls":124},0]
["HOSPITAL GENERAL DEL VALLE DEL MEZQUITAL IXMIQUILPAN","LTS. INÉS SAN AGUSTIN PÉREZ","Noviembre",3,"Participación Comite Hospitalario",{"$nulls":124},0]
["HOSPITAL GENERAL DEL VALLE DEL MEZQUITAL IXMIQUILPAN","LTS. INÉS SAN AGUSTIN PÉREZ","Noviembre",4,"Participación en juntas generales.",{"$nulls":124},0]
["HOSPITAL GENERAL DEL VALLE DEL MEZQUITAL IXMIQUILPAN","LTS. INÉS SAN AGUSTIN PÉREZ","Noviembre",5,"Sesiones de supervisión.",{"$nulls":124},0]
["HOSPITAL GENERAL DEL VALLE DEL MEZQUITAL IXMIQUILPAN","LTS. INÉS SAN AGUSTIN PÉREZ","Noviembre",null,"Total",{"$f":"SUM(F46:F50)","v":0},0,0,0,0,0,0,0,0,0,0,0,0,0,0,0,0,0,0,0,0,0,0,0,0,0,0,0,0,0,0,0,0,0,0,0,0,0,0,0,0,0,0,0,0,0,0,0,0,0,0,0,0,0,0,0,0,0,0,0,{"$f":"SUM(BN46:BN50)","v":0},0,0,0,0,0,0,0,0,0,0,0,0,0,0,0,0,0,0,0,0,0,0,0,0,0,0,0,0,0,0,0,0,0,0,0,0,0,0,0,0,0,0,0,0,0,0,0,0,0,0,0,0,0,0,0,0,0,0,0,0,0,0,0,0]
["HOSPITAL GENERAL DEL VALLE DEL MEZQUITAL IXMIQUILPAN","LTS. INÉS SAN AGUSTIN PÉREZ","Noviembre","Ingresos y egresos",null,"M","V","N","GE","M","V","N","GE","M","V","N","GE","M","V","N","GE","M","V","N","GE","M","V","N","GE","M","V","N","GE","M","V","N","GE","M","V","N","GE","M","V","N","GE","M","V","N","GE","M","V","N","GE","M","V","N","GE","M","V","N","GE","M","V","N","GE","M","V","N","GE","M","V","N","GE","M","V","N","GE","M","V","N","GE","M","V","N","GE","M","V","N","GE","M","V","N","GE","M","V","N","GE","M","V","N","GE","M","V","N","GE","M","V","N","GE","M","V","N","GE","M","V","N","GE","M","V","N","GE","M","V","N","GE","M","V","N","GE"]
["HOSPITAL GENERAL DEL VALLE DEL MEZQUITAL IXMIQUILPAN","LTS. INÉS SAN AGUSTIN PÉREZ","Noviembre",1,"Total ingresos",{"$nulls":124},{"$f":"SUM(F53:DY53)","v":0}]
["HOSPITAL GENERAL DEL VALLE DEL MEZQUITAL IXMIQUILPAN","LTS. INÉS SAN AGUSTIN PÉREZ","Noviembre",2,"Totasl egresos",{"$nulls":124},{"$f":"SUM(F54:DY54)","v":0}]
[{"$nulls":4},"Total",{"$f":"SUM(F53:F54)","v":0},{"$f":"SUM(G53:G54)","v":0},0,0,0,0,0,0,0,0,0,0,0,0,0,0,0,0,0,0,0,0,0,0,0,0,0,0,0,0,0,0,0,0,0,0,0,0,0,0,0,0,0,0,0,0,0,0,0,0,0,0,0,0,0,0,0,0,0,0,0,{"$f":"SUM(BO53:BO54)","v":0},0,0,0,0,0,0,0,0,0,0,0,0,0,0,0,0,0,0,0,0,0,0,0,0,0,0,0,0,0,0,0,0,0,0,0,0,0,0,0,0,0,0,0,0,0,0,0,0,0,0,0,0,0,0,0,0,0,0,0,0,0,0,{"$f":"SUM(F55:DY55)","v":0}]

{"sheet":"CAT","index":1,"n_rows":19,"n_cols":3,"rows_kept":19,"hidden":true}
["UNIDADES",null,"TS"]
["HOSPITAL GENERAL ACTOPAN",null,"LTS. INÉS SAN AGUSTIN PÉREZ"]
["HOSPITAL INTEGRAL ATLAPEXCO",null,"LTS ADRIANA GUILLEN HERNÁNDEZ"]
["HOSPITAL GENERAL HUICHAPAN",null,"LTS. YANET CASTILLO ÁLVAREZ"]
["HOSPITAL GENERAL DEL VALLE DEL MEZQUITAL IXMIQUILPAN",null,"LTS. YAZMIN MEJIA BAUTISTA"]
["HOSPITAL INTEGRAL JACALA",null,"LTS. MARIA ELENA CRUZ CORTES"]
["HOSPITAL INTEGRAL CINTA LARGA",null,"LTS. JOHANNA L. SALINAS CASTILLO"]
["HOSPITAL GENERAL PACHUCA",null,"LTS. YOLANDA ESTRELLA LÓPEZ"]
["HOSPITAL REGIONAL OTOMI TEPEHUA",null,"LTS. MARIA ELENA ALBARRAN NIEVES"]
["HOSPITAL ZIMAPÁN",null,"ANAHI MATLALCUATZI ROMERO"]
["HOSPITAL MATERNO INFANTIL",null,"LTS. LORENA VITE HERNANDEZ"]
["HOSPITAL INTEGRAL DE TLANCHINOL",null,"LTS. EMILIA BARBARA MONROY ORTIZ"]
["HOSPITAL GENERAL DE APAN",null,"MTRA. MARIBEL RODRIGUEZ CORTES"]
["HOSPITAL GENERAL DE LA HUASTECA",null,"LTS. DEIFILIA HERNÁNDEZ RUANO"]
["HOSPITAL GENERAL TULA",null,"LTS. AIRAM PACHECO ROSALES"]
["HOSPITAL BÁSICO COMUNITARIO HUEHUETLA"]
["HOSPITAL IMSS BIENESTAR METZTITLÁN"]
["HOSPITAL GENERAL DE TULANCINGO"]
["VILLA OCARANZA"]